bitfinex-derivatives/quotes_SOLF0:USTF0_20250606
["timestamp","ask_amount","ask_price","bid_price","bid_amount"]
[1749241608227,4.65948999,149.53,149.52,6.6835]
[1749241608533,4.65948999,149.53,149.51,7.32771355]
[1749241608534,0.04520768,149.54,149.53,6.6831]
[1749241608736,4.70287333,149.54,149.53,6.6831]
[1749241609835,0.04520768,149.54,149.53,6.6831]
[1749241610535,0.04520768,149.54,149.52,6.6834]
[1749241610734,4.65944283,149.53,149.52,6.6834]
[1749241611138,0.04520768,149.54,149.53,6.6831]
[1749241611337,4.70397593,149.54,149.53,6.6831]
[1749241612240,0.04520768,149.54,149.53,6.6831]
[1749241612442,4.69894495,149.54,149.53,6.6831]
[1749241613137,4.74273146,149.54,149.53,6.6831]
[1749241613343,4.74190073,149.54,149.53,6.6831]
[1749241614642,0.04520768,149.54,149.53,6.6831]
[1749241614839,4.76249545,149.54,149.53,6.6831]
[1749241615247,4.76249546,149.54,149.53,6.6831]
[1749241615745,0.04520768,149.54,149.53,6.6831]
[1749241615946,4.76249546,149.54,149.53,6.6831]
[1749241616145,0.04520768,149.54,149.53,6.6831]
[1749241616347,4.76249546,149.54,149.53,6.6831]
[1749241616544,0.04520768,149.54,149.53,6.6831]
[1749241616937,4.76063739,149.54,149.53,6.6831]
[1749241617141,0.04520768,149.54,149.53,6.6831]
[1749241617339,4.76063739,149.54,149.53,6.6831]
[1749241617543,2.71453971,149.54,149.53,6.6831]
[1749241618046,2.71365232,149.54,149.53,6.6831]
[1749241618246,2.71365247,149.54,149.53,6.6831]
[1749241618451,0.04520768,149.54,149.53,6.6831]
[1749241619046,2.71383947,149.54,149.53,6.6831]
[1749241620148,0.04520768,149.54,149.53,6.6831]
[1749241620453,2.71370588,149.54,149.53,6.6831]
[1749241620652,2.71942967,149.54,149.53,6.6831]
[1749241620848,2.71937853,149.54,149.53,6.6831]
[1749241621442,0.04520768,149.54,149.53,6.6831]
[1749241621953,2.71889731,149.54,149.53,6.6831]
[1749241622150,0.04520768,149.54,149.53,6.6831]
[1749241622656,2.71889768,149.54,149.53,6.6831]
[1749241623551,2.71905857,149.54,149.53,6.6831]
[1749241623948,2.7189819,149.54,149.53,6.6831]
[1749241624254,0.04520768,149.54,149.53,6.6831]
[1749241624553,0.04520768,149.54,149.53,13.95981898]
[1749241624949,7.68e-06,149.54,149.53,13.95981898]
[1749241631349,2.67272564,149.54,149.53,6.6831]
[1749241632258,2.67248066,149.54,149.53,6.6831]
[1749241632458,2.67248578,149.54,149.53,6.6831]
[1749241632659,2.67232238,149.54,149.53,6.6831]
[1749241632860,7.68e-06,149.54,149.53,6.6831]
[1749241635357,2.67213372,149.54,149.52,6.6834]
[1749241635666,2.67212604,149.53,149.52,6.6834]
[1749241635865,2.67165683,149.53,149.52,6.6834]
[1749241636261,4.7252308,149.54,149.53,6.6831]
[1749241636451,2.67125775,149.54,149.53,6.6831]
[1749241636660,7.68e-06,149.54,149.53,6.6831]
[1749241636853,2.67139562,149.54,149.53,6.6831]
[1749241637062,2.67144158,149.54,149.53,6.6831]
[1749241637463,7.39127547,149.54,149.53,6.6831]
[1749241637666,4.71984157,149.54,149.53,6.6831]
[1749241637864,7.39100061,149.54,149.53,6.6831]
[1749241638063,2.67116672,149.54,149.53,6.6831]
[1749241638267,4.71708087,149.54,149.53,6.6831]
[1749241638468,2.67111056,149.54,149.53,6.6831]
[1749241638664,2.67112588,149.54,149.53,6.6831]
[1749241638967,7.38819907,149.54,149.53,6.6831]
[1749241639568,7.39068748,149.54,149.53,6.6831]
[1749241639763,4.72139554,149.54,149.53,6.6831]
[1749241639962,7.38921876,149.54,149.53,6.6831]
[1749241640162,2.667883,149.54,149.53,6.6831]
[1749241640363,7.38938401,149.54,149.53,6.6831]
[1749241640762,7.38939089,149.54,149.53,6.6831]
[1749241641267,7.38849908,149.54,149.53,6.6831]
[1749241641468,7.3884984,149.54,149.53,6.6831]
[1749241641767,7.38858012,149.54,149.53,6.6831]
[1749241641969,2.66717587,149.54,149.53,6.6831]
[1749241642164,7.37778188,149.54,149.53,6.6831]
[1749241643058,7.38228057,149.54,149.53,6.6831]
[1749241643258,4.71167178,149.54,149.53,6.6831]
[1749241643662,7.38228057,149.54,149.53,6.6831]
[1749241644969,4.71167178,149.54,149.53,6.6831]
[1749241645169,7.38218159,149.54,149.53,6.6831]
[1749241645468,2.67051749,149.54,149.53,6.6831]
[1749241645668,7.38222648,149.54,149.53,6.6831]
[1749241646667,4.71166526,149.54,149.53,6.6831]
[1749241646868,7.38279961,149.54,149.53,6.6831]
[1749241647069,2.67114203,149.54,149.53,6.6831]
[1749241647469,7.39790072,149.54,149.53,6.6831]
[1749241647869,7.4037036,149.54,149.53,6.6831]
[1749241648070,7.40373951,149.54,149.53,6.6831]
[1749241648968,2.67698082,149.54,149.53,6.6831]
[1749241649269,4.72720873,149.54,149.51,0.05099457]
[1749241649470,7.40451751,149.53,149.51,0.05099457]
[1749241649670,7.40451751,149.52,149.51,0.05099457]
[1749241649970,7.40502196,149.52,149.51,0.05099457]
[1749241650174,6.68290768,149.54,149.51,6.73469457]
[1749241650375,7.40507632,149.53,149.51,6.73469457]
[1749241650570,4.7277118,149.52,149.51,6.73469457]
[1749241650765,7.40507741,149.52,149.51,6.73469457]
[1749241651172,7.40509487,149.52,149.51,6.73469457]
[1749241651874,4.72771411,149.52,149.51,6.73469457]
[1749241652076,7.39015563,149.52,149.51,6.73469457]
[1749241652374,7.39021265,149.52,149.51,6.73469457]
[1749241653674,2.67629031,149.52,149.51,6.73469457]
[1749241653863,7.38925642,149.52,149.51,6.73469457]
[1749241654378,7.38943169,149.52,149.51,6.73469457]
[1749241655067,4.71240461,149.52,149.51,6.73469457]
[1749241655264,7.38644947,149.52,149.51,6.73469457]
[1749241655465,7.38638792,149.52,149.51,6.73469457]
[1749241655666,7.38637936,149.52,149.51,6.73469457]
[1749241655875,7.38639989,149.52,149.51,6.73469457]
[1749241656178,6.68280768,149.54,149.52,6.6835]
[1749241656376,2.67399838,149.53,149.52,6.6835]
[1749241656574,4.71239815,149.53,149.52,6.6835]
[1749241656779,7.38586665,149.53,149.52,6.6835]
[1749241656981,4.71239328,149.53,149.52,6.6835]
[1749241657169,9.36961753,149.53,149.52,6.6835]
[1749241657478,12.0369883,149.53,149.52,6.6835]
[1749241657679,12.0369883,149.53,149.51,6.73479457]
[1749241657978,4.70653442,149.52,149.51,6.73479457]
[1749241658180,2.67323239,149.52,149.51,6.73479457]
[1749241658369,7.37976681,149.52,149.51,6.73479457]
[1749241658574,7.37977268,149.52,149.51,6.73479457]
[1749241658981,18.71797271,149.52,149.51,0.05099457]
[1749241659184,18.71819007,149.52,149.51,0.05099457]
[1749241659377,18.71825443,149.52,149.51,0.05099457]
[1749241659677,14.01415458,149.52,149.51,0.05099457]
[1749241659884,16.04475069,149.52,149.51,0.05099457]
[1749241660078,18.71809443,149.52,149.51,0.05099457]
[1749241660279,6.6847,149.5,149.48,6.21471653]
[1749241660481,9.36128567,149.49,149.47,6.21471653]
[1749241660781,7.32780178,149.48,149.47,6.6856]
[1749241661079,7.32780355,149.48,149.47,6.6856]
[1749241661381,7.37402143,149.48,149.47,6.6856]
[1749241661577,0.04303419,149.49,149.48,6.6853]
[1749241661778,7.41699046,149.49,149.48,6.6853]
[1749241662079,7.41699634,149.49,149.48,6.6853]
[1749241662277,0.04303419,149.49,149.48,6.6853]
[1749241662581,7.41682964,149.49,149.48,6.6853]
[1749241662777,0.04303419,149.49,149.48,6.6853]
[1749241662979,7.40928829,149.49,149.48,6.6853]
[1749241663185,4.73928768,149.49,149.48,6.6853]
[1749241663485,7.40928829,149.49,149.48,6.6853]
[1749241663679,7.40928863,149.49,149.48,6.6853]
[1749241663983,0.04303419,149.49,149.48,6.6853]
[1749241664787,7.40928869,149.49,149.48,6.6853]
[1749241665078,0.04303419,149.49,149.48,6.6853]
[1749241665584,7.40023221,149.49,149.48,6.6853]
[1749241666084,7.39980845,149.49,149.48,6.6853]
[1749241666686,7.38275192,149.49,149.48,6.6853]
[1749241666875,2.70049342,149.49,149.48,6.6853]
[1749241667079,2.7005395,149.49,149.48,6.6853]
[1749241667385,7.37925645,149.49,149.48,6.6853]
[1749241667587,2.70054952,149.49,149.48,6.6853]
[1749241667784,4.72174261,149.49,149.48,6.6853]
[1749241668082,2.70051905,149.49,149.48,6.6853]
[1749241668276,7.37922295,149.49,149.48,6.6853]
[1749241668684,7.37629997,149.49,149.48,6.6853]
[1749241668989,4.71882547,149.49,149.48,6.6853]
[1749241669183,2.70039991,149.49,149.48,6.6853]
[1749241669385,7.37619119,149.49,149.48,6.6853]
[1749241669990,7.37697738,149.49,149.48,6.6853]
[1749241670378,2.70042689,149.49,149.48,6.6853]
[1749241670592,0.04303419,149.49,149.48,6.6853]
[1749241670792,2.70040129,149.49,149.48,6.6853]
[1749241670990,4.71959449,149.49,149.48,6.6853]
[1749241671183,7.37615352,149.49,149.48,6.6853]
[1749241671685,7.37485533,149.49,149.48,6.6853]
[1749241671885,4.71717462,149.49,149.48,6.6853]
[1749241672086,7.37238942,149.49,149.48,6.6853]
[1749241672694,7.3724445,149.49,149.48,6.6853]
[1749241673390,7.3732392,149.49,149.48,6.6853]
[1749241673587,2.69908973,149.49,149.48,6.6853]
[1749241674085,7.36970315,149.49,149.48,6.6853]
[1749241674892,4.71364761,149.49,149.48,6.6853]
[1749241675091,7.36869646,149.49,149.48,6.6853]
[1749241675292,0.04303419,149.49,149.48,6.6853]
[1749241675592,7.36713531,149.49,149.48,6.6853]
[1749241675786,2.69809839,149.49,149.48,6.6853]
[1749241676090,7.36713531,149.49,149.48,6.6853]
[1749241676791,7.28091428,149.55,149.48,6.21471653]
[1749241676990,7.28091428,149.55,149.49,13.5181648]
[1749241677288,7.28091428,149.55,149.49,7.28091428]
[1749241677590,7.28091428,149.55,149.49,13.5181648]
[1749241677791,0.05136101,149.53,149.51,0.05035388]
[1749241678897,0.05136101,149.53,149.52,6.6833]
[1749241680293,6.73456101,149.53,149.51,0.05035388]
[1749241680694,6.73456101,149.53,149.51,6.73405388]
[1749241682391,14.01547529,149.53,149.51,6.73405388]
[1749241683996,6.6835,149.52,149.51,0.05035388]
[1749241684198,40.0035,149.52,149.51,0.05035388]
[1749241685592,40.60091428,149.52,149.45,6.23725052]
[1749241685791,7.28091428,149.48,149.44,6.23725052]
[1749241685998,6.6861,149.47,149.43,86.23251007]
[1749241686394,40.60091428,149.48,149.43,6.23725052]
[1749241686595,0.04843593,149.47,149.45,6.6864]
[1749241687096,0.04843593,149.47,149.46,6.6862]
[1749241687296,4.70867081,149.47,149.46,6.6862]
[1749241688488,0.04843593,149.47,149.46,6.6862]
[1749241688687,2.64514634,149.47,149.46,6.6862]
[1749241689096,2.64514424,149.47,149.46,6.6862]
[1749241689402,0.04843593,149.47,149.46,6.6862]
[1749241689901,2.64501109,149.47,149.46,6.6862]
[1749241690095,0.04843593,149.47,149.46,6.6862]
[1749241690291,2.64452839,149.47,149.46,6.6862]
[1749241691496,2.63211595,149.47,149.46,6.6862]
[1749241691700,0.04843593,149.47,149.46,6.6862]
[1749241691998,9.911544,149.47,149.45,6.23725052]
[1749241692197,7.15648312,149.46,149.44,0.04469801]
[1749241692398,7.32785676,149.47,149.44,0.04469801]
[1749241692399,2.58333069,149.45,149.44,0.04469801]
[1749241692893,2.58471024,149.45,149.44,0.04469801]
[1749241693098,2.58468623,149.45,149.44,0.04469801]
[1749241693296,2.58468581,149.45,149.44,0.04469801]
[1749241693505,2.58479396,149.45,149.44,0.04469801]
[1749241694898,2.58290467,149.45,149.44,0.04469801]
[1749241695098,6.6866,149.46,149.44,0.04469801]
[1749241695290,2.58279075,149.45,149.44,0.04469801]
[1749241695488,2.58279408,149.45,149.44,0.04469801]
[1749241695698,2.58272939,149.45,149.44,0.04469801]
[1749241695899,9.26942939,149.45,149.44,0.04469801]
[1749241696393,9.26664446,149.45,149.44,0.04469801]
[1749241696697,9.26648744,149.45,149.44,0.04469801]
[1749241697088,6.6867,149.45,149.44,0.04469801]
[1749241697291,9.2656813,149.45,149.44,0.04469801]
[1749241697996,9.26665115,149.45,149.44,0.04469801]
[1749241698197,6.6867,149.45,149.44,0.04469801]
[1749241698395,2.57992047,149.45,149.44,0.04469801]
[1749241698599,6.6863,149.46,149.44,0.04469801]
[1749241698899,2.5798642,149.45,149.44,0.04469801]
[1749241699695,2.5798642,149.45,149.44,6.73179801]
[1749241700096,2.57286868,149.45,149.44,0.04469801]
[1749241700297,0.04843593,149.47,149.44,0.04469801]
[1749241700696,2.57276136,149.46,149.44,0.04469801]
[1749241700896,0.04843593,149.47,149.45,6.6867]
[1749241701200,2.57276136,149.46,149.45,6.6867]
[1749241701698,2.57203566,149.46,149.45,6.6867]
[1749241702195,2.57210862,149.46,149.45,6.6867]
[1749241703201,0.04843593,149.47,149.46,6.6862]
[1749241703400,4.59215747,149.47,149.46,6.6862]
[1749241703695,0.04843593,149.47,149.46,6.6862]
[1749241703900,2.62041582,149.47,149.46,6.6862]
[1749241704297,0.04843593,149.47,149.46,6.6862]
[1749241704598,2.62079662,149.47,149.46,6.6862]
[1749241705394,0.04843593,149.47,149.46,6.6862]
[1749241705598,2.62076593,149.47,149.46,6.6862]
[1749241706100,0.04843593,149.47,149.46,6.6862]
[1749241706300,2.62362793,149.47,149.46,6.6862]
[1749241706490,0.04843593,149.47,149.46,6.6862]
[1749241707699,2.6240744,149.47,149.46,6.6862]
[1749241707900,0.04843593,149.47,149.46,6.6862]
[1749241708503,2.62412255,149.47,149.46,6.6862]
[1749241708999,0.04843593,149.47,149.46,6.6862]
[1749241709199,2.62660686,149.47,149.46,6.6862]
[1749241710199,0.04843593,149.47,149.46,6.6862]
[1749241710902,2.62668358,149.47,149.46,6.6862]
[1749241711303,2.6294117,149.47,149.46,6.6862]
[1749241711903,0.04843593,149.47,149.46,6.6862]
[1749241712603,2.62938101,149.47,149.46,6.6862]
[1749241712801,0.04843593,149.47,149.46,6.6862]
[1749241713704,2.62947064,149.47,149.46,6.6862]
[1749241713901,2.62955235,149.47,149.46,6.6862]
[1749241714105,2.62950709,149.47,149.46,6.6862]
[1749241714797,0.04843593,149.47,149.46,6.6862]
[1749241716309,33.3,149.52,149.51,6.684]
[1749241716510,40.42970396,149.52,149.51,6.684]
[1749241716807,37.84888943,149.52,149.51,6.684]
[1749241716997,35.87940606,149.52,149.51,6.684]
[1749241717204,385.16,149.55,149.52,6.6835]
[1749241717205,0.04858435,149.53,149.52,6.6835]
[1749241717405,2.62759371,149.53,149.52,6.6835]
[1749241717608,7.18194488,149.53,149.52,6.6835]
[1749241717804,2.62759371,149.53,149.52,6.6835]
[1749241718205,7.18204588,149.53,149.52,6.6835]
[1749241718406,4.60293882,149.53,149.52,6.6835]
[1749241718703,2.62777838,149.53,149.52,6.6835]
[1749241718905,7.18207796,149.53,149.52,6.6835]
[1749241719106,9.90719706,149.53,149.5,0.04898703]
[1749241719302,4.55503101,149.52,149.5,0.04898703]
[1749241719607,7.13457792,149.51,149.5,0.04898703]
[1749241719805,2.57892554,149.51,149.5,0.04898703]
[1749241720005,7.13300707,149.51,149.5,0.04898703]
[1749241720210,4.55399423,149.51,149.5,0.04898703]
[1749241720411,7.13303734,149.51,149.5,0.04898703]
[1749241721408,7.15521469,149.51,149.5,0.04898703]
[1749241721809,2.59561634,149.51,149.5,0.04898703]
[1749241722009,6.6838,149.52,149.5,0.04898703]
[1749241722313,6.6838,149.52,149.5,6.73338703]
[1749241722515,7.17363975,149.51,149.5,6.73338703]
[1749241722907,7.17367044,149.51,149.5,6.73338703]
[1749241723109,7.1870017,149.51,149.5,6.73338703]
[1749241723409,2.59626912,149.51,149.5,6.73338703]
[1749241723709,7.18695105,149.51,149.5,6.73338703]
[1749241723914,7.18695114,149.51,149.5,6.73338703]
[1749241724114,7.18694713,149.51,149.5,6.73338703]
[1749241724317,2.59626621,149.51,149.5,6.73338703]
[1749241724515,7.18700748,149.51,149.5,6.73338703]
[1749241724704,2.59628692,149.51,149.5,6.73338703]
[1749241724908,4.59068453,149.51,149.5,6.73338703]
[1749241725107,6.6838,149.52,149.5,6.73338703]
[1749241725317,2.59853943,149.51,149.5,6.73338703]
[1749241725713,7.19036016,149.51,149.5,6.73338703]
[1749241725918,2.5956928,149.51,149.5,6.73338703]
[1749241726314,4.59466736,149.51,149.5,6.73338703]
[1749241726617,7.19039088,149.51,149.5,6.73338703]
[1749241726828,7.19781886,149.51,149.5,6.73338703]
[1749241727019,6.6838,149.52,149.5,6.73338703]
[1749241727212,4.60210343,149.51,149.5,6.73338703]
[1749241727517,7.19789648,149.51,149.5,6.73338703]
[1749241727915,4.60211152,149.51,149.5,0.04898703]
[1749241728117,7.19767305,149.51,149.5,0.04898703]
[1749241728314,40.47767305,149.51,149.5,0.04898703]
[1749241728515,47.75872682,149.51,149.5,0.04898703]
[1749241728717,45.16390584,149.51,149.5,0.04898703]
[1749241728917,47.76110068,149.51,149.5,0.04898703]
[1749241729121,43.15661604,149.51,149.5,0.04898703]
[1749241729313,47.76110112,149.51,149.5,6.73338703]
[1749241730208,47.76097239,149.51,149.5,6.73338703]
[1749241730414,40.55942083,149.51,149.5,6.73338703]
[1749241730823,47.75525904,149.51,149.5,6.73338703]
[1749241731023,45.16377718,149.51,149.5,6.73338703]
[1749241731219,47.75525903,149.51,149.5,6.73338703]
[1749241731424,47.7552744,149.51,149.5,6.73338703]
[1749241731820,43.15091806,149.51,149.5,6.73338703]
[1749241732022,47.75381254,149.51,149.5,6.73338703]
[1749241732323,47.75282174,149.51,149.5,6.73338703]
[1749241732623,47.74199481,149.51,149.5,0.04898703]
[1749241733522,43.14992726,149.51,149.5,0.04898703]
[1749241733727,47.73972854,149.51,149.5,0.04898703]
[1749241733926,43.14992726,149.51,149.5,0.04898703]
[1749241734119,47.73972854,149.51,149.5,0.04898703]
[1749241734521,47.73971318,149.51,149.5,6.73338703]
[1749241734723,47.74255845,149.51,149.5,6.73338703]
[1749241735114,40.55942083,149.51,149.5,6.73338703]
[1749241735324,47.74256121,149.51,149.5,6.73338703]
[1749241735523,43.15203526,149.51,149.5,6.73338703]
[1749241735923,47.74082139,149.51,149.5,6.73338703]
[1749241736117,43.15203526,149.51,149.5,6.73338703]
[1749241736323,47.74080327,149.51,149.5,6.73338703]
[1749241737123,47.74096972,149.51,149.5,6.73338703]
[1749241737328,43.15218635,149.51,149.5,6.73338703]
[1749241737530,47.74096972,149.51,149.5,6.73338703]
[1749241737920,47.74594382,149.51,149.5,6.73338703]
[1749241738826,45.15333925,149.51,149.5,6.73338703]
[1749241739035,47.74668241,149.51,149.5,6.73338703]
[1749241739327,47.74794122,149.51,149.5,6.73338703]
[1749241739530,47.74794121,149.51,149.5,6.73338703]
[1749241739724,40.55942083,149.51,149.5,6.73338703]
[1749241739924,47.7479412,149.51,149.5,6.73338703]
[1749241740230,45.15505861,149.51,149.5,6.73338703]
[1749241740428,47.74509369,149.51,149.5,6.73338703]
[1749241740728,47.74509338,149.51,149.5,6.73338703]
[1749241741118,40.55942083,149.51,149.5,6.73338703]
[1749241741324,43.14928919,149.51,149.5,6.73338703]
[1749241741629,47.74492693,149.51,149.5,6.73338703]
[1749241742227,43.1493045,149.51,149.5,6.73338703]
[1749241742426,47.74494496,149.51,149.5,6.73338703]
[1749241742627,47.74493219,149.51,149.5,6.73338703]
[1749241743331,45.12391666,149.51,149.5,6.73338703]
[1749241743831,40.52827812,149.51,149.5,6.73338703]
[1749241744026,45.12619564,149.51,149.5,6.73338703]
[1749241744229,45.12717589,149.51,149.5,6.73338703]
[1749241744530,37.9384053,149.51,149.5,6.73338703]
[1749241744724,45.12716058,149.51,149.5,6.73338703]
[1749241745323,45.12774792,149.51,149.5,6.73338703]
[1749241745832,45.1310903,149.51,149.5,6.73338703]
[1749241746232,45.13588714,149.51,149.5,6.73338703]
[1749241746834,40.47748184,149.51,149.5,6.73338703]
[1749241747633,40.47834237,149.51,149.5,6.73338703]
[1749241747830,33.28,149.51,149.5,6.73338703]
[1749241748032,42.53496734,149.51,149.5,6.73338703]
[1749241748233,45.13132133,149.51,149.5,6.73338703]
[1749241749027,45.13026632,149.51,149.5,6.73338703]
[1749241749228,45.13165921,149.51,149.5,6.73338703]
[1749241749534,45.13391076,149.51,149.5,6.73338703]
[1749241749735,37.9384053,149.51,149.5,6.73338703]
[1749241749936,42.53616019,149.51,149.5,6.73338703]
[1749241750137,45.13388655,149.51,149.5,6.73338703]
[1749241750724,42.53616019,149.51,149.5,6.73338703]
[1749241751030,37.9384053,149.51,149.5,6.73338703]
[1749241751329,45.13373789,149.51,149.5,6.73338703]
[1749241751531,51.81773789,149.51,149.5,0.04898703]
[1749241751736,47.21998024,149.51,149.5,0.04898703]
[1749241752037,51.82316104,149.51,149.5,0.04898703]
[1749241752335,51.82345531,149.51,149.5,0.04898703]
[1749241752736,49.22572872,149.51,149.5,0.04898703]
[1749241752924,51.8234614,149.51,149.5,0.04898703]
[1749241754336,51.82438991,149.51,149.5,0.04898703]
[1749241754632,44.6224053,149.51,149.5,0.04898703]
[1749241754833,47.22031621,149.51,149.5,0.04898703]
[1749241755023,51.82457179,149.51,149.5,0.04898703]
[1749241755425,51.82455372,149.51,149.5,0.04898703]
[1749241755629,47.22030087,149.51,149.5,0.04898703]
[1749241755928,51.82455372,149.51,149.5,0.04898703]
[1749241756335,49.22665815,149.51,149.5,0.04898703]
[1749241756534,51.82955888,149.51,149.5,0.04898703]
[1749241757037,49.22789863,149.51,149.5,0.04898703]
[1749241757329,42.54351968,149.51,149.5,0.04898703]
[1749241757534,45.14517717,149.51,149.5,0.04898703]
[1749241757737,37.9384053,149.51,149.5,0.04898703]
[1749241757939,45.14516791,149.51,149.5,0.04898703]
[1749241758238,42.54351785,149.51,149.5,0.04898703]
[1749241758437,45.14518086,149.51,149.5,0.04898703]
[1749241758633,45.14517993,149.51,149.5,0.04898703]
[1749241760136,42.54351968,149.51,149.5,0.04898703]
[1749241760338,45.14232256,149.51,149.5,0.04898703]
[1749241760836,42.54351692,149.51,149.5,0.04898703]
[1749241761037,45.14230443,149.51,149.5,0.04898703]
[1749241762040,40.5367966,149.51,149.5,0.04898703]
[1749241762333,45.14722966,149.51,149.5,0.04898703]
[1749241762538,45.14723239,149.51,149.5,0.04898703]
[1749241762839,45.14724776,149.51,149.5,0.04898703]
[1749241763035,45.14724776,149.51,149.5,6.73338703]
[1749241763232,40.48884246,149.51,149.5,6.73338703]
[1749241763430,40.48727733,149.51,149.5,6.73338703]
[1749241763639,35.87838003,149.51,149.5,6.73338703]
[1749241763937,40.48727733,149.51,149.5,6.73338703]
[1749241764338,40.48729544,149.51,149.5,6.73338703]
[1749241765441,40.48730986,149.51,149.5,6.73338703]
[1749241765741,37.88902741,149.51,149.5,6.73338703]
[1749241765932,35.87840982,149.51,149.5,6.73338703]
[1749241766430,40.48743723,149.51,149.5,6.73338703]
[1749241767041,37.88902638,149.51,149.5,6.73338703]
[1749241767239,40.49026526,149.51,149.5,6.73338703]
[1749241767834,37.88902638,149.51,149.5,6.73338703]
[1749241768040,40.48744115,149.51,149.5,6.73338703]
[1749241768846,40.48997015,149.51,149.5,6.73338703]
[1749241769045,37.89155538,149.51,149.5,6.73338703]
[1749241769343,33.28,149.51,149.5,6.73338703]
[1749241769545,37.89155707,149.51,149.5,6.73338703]
[1749241769741,35.87842407,149.51,149.5,6.73338703]
[1749241770044,37.89155702,149.51,149.5,6.73338703]
[1749241770245,33.28,149.51,149.5,6.73338703]
[1749241770444,45.1512503,149.51,149.5,6.73338703]
[1749241770646,45.15124486,149.51,149.5,6.73338703]
[1749241770937,37.9384053,149.51,149.5,6.73338703]
[1749241771145,42.54995703,149.51,149.5,6.73338703]
[1749241771336,45.15137795,149.51,149.5,6.73338703]
[1749241771533,45.15139331,149.51,149.5,6.73338703]
[1749241771736,45.1513994,149.51,149.5,6.73338703]
[1749241772134,40.53984401,149.51,149.5,6.73338703]
[1749241772336,45.1568302,149.51,149.5,6.73338703]
[1749241772749,45.15697917,149.51,149.5,6.73338703]
[1749241773247,45.15705966,149.51,149.5,6.73338703]
[1749241773447,42.55544297,149.51,149.5,6.73338703]
[1749241773750,45.15637764,149.51,149.5,6.73338703]
[1749241773949,42.55474289,149.51,149.5,6.73338703]
[1749241774255,45.15637765,149.51,149.5,6.73338703]
[1749241774443,40.53932461,149.51,149.5,6.73338703]
[1749241774750,45.1572438,149.51,149.5,6.73338703]
[1749241774950,51.84142323,149.51,149.5,0.04898703]
[1749241775146,47.22354025,149.51,149.5,0.04898703]
[1749241775452,47.22377722,149.51,149.5,0.04898703]
[1749241775751,51.83695592,149.51,149.5,0.04898703]
[1749241775939,51.83695749,149.51,149.5,0.04898703]
[1749241776346,51.83682008,149.51,149.5,0.04898703]
[1749241776645,51.83097442,149.51,149.5,0.04898703]
[1749241776840,49.23104806,149.51,149.5,0.04898703]
[1749241777041,51.83097534,149.51,149.5,0.04898703]
[1749241777245,49.23104129,149.51,149.5,0.04898703]
[1749241777446,44.62188465,149.51,149.5,0.04898703]
[1749241777645,51.83087608,149.51,149.5,0.04898703]
[1749241778150,51.83022875,149.51,149.5,0.04898703]
[1749241778352,51.83022695,149.51,149.5,0.04898703]
[1749241778546,49.2304004,149.51,149.5,0.04898703]
[1749241778747,51.83023465,149.51,149.5,0.04898703]
[1749241778948,49.2304004,149.51,149.5,0.04898703]
[1749241779249,47.22177245,149.51,149.5,0.04898703]
[1749241779449,51.83026817,149.51,149.5,0.04898703]
[1749241779645,51.83026825,149.51,149.5,0.04898703]
[1749241779953,51.83025186,149.51,149.5,0.04898703]
[1749241780249,51.83023888,149.51,149.5,0.04898703]
[1749241780642,49.23037583,149.51,149.5,0.04898703]
[1749241780839,51.82452864,149.51,149.5,0.04898703]
[1749241781245,44.62188465,149.51,149.5,0.04898703]
[1749241781448,51.82454398,149.51,149.5,0.04898703]
[1749241781644,51.8245131,149.51,149.5,0.04898703]
[1749241781848,51.82445272,149.51,149.5,0.04898703]
[1749241782153,49.23031545,149.51,149.5,0.04898703]
[1749241782352,51.82445274,149.51,149.5,0.04898703]
[1749241782553,47.21602193,149.51,149.5,0.04898703]
[1749241782743,51.81902522,149.51,149.5,0.04898703]
[1749241782945,47.21506254,149.51,149.5,0.04898703]
[1749241783152,47.21507788,149.51,149.5,0.04898703]
[1749241783352,40.47597774,149.51,149.5,6.73338703]
[1749241783652,42.53662918,149.51,149.5,6.73338703]
[1749241783852,40.53086335,149.51,149.5,6.73338703]
[1749241784051,42.53653789,149.51,149.5,6.73338703]
[1749241784250,45.12859958,149.51,149.5,6.73338703]
[1749241784453,40.53054833,149.51,149.5,6.73338703]
[1749241784653,45.12876849,149.51,149.5,6.73338703]
[1749241784854,45.12665998,149.51,149.5,6.73338703]
[1749241785055,42.53658321,149.51,149.5,6.73338703]
[1749241785257,45.12659543,149.51,149.5,6.73338703]
[1749241785549,42.5363816,149.51,149.5,6.73338703]
[1749241785950,45.1263035,149.51,149.5,6.73338703]
[1749241786151,45.12685815,149.51,149.5,6.73338703]
[1749241786352,40.52814549,149.51,149.5,6.73338703]
[1749241786651,37.93788465,149.51,149.5,6.73338703]
[1749241786856,42.53431493,149.51,149.5,6.73338703]
[1749241787051,45.12328585,149.51,149.5,6.73338703]
[1749241787356,42.53433789,149.51,149.5,6.73338703]
[1749241787557,45.12341599,149.51,149.5,6.73338703]